Workbook

Sheet Experiment_example
C1: Stock concentration (in μM) | D1: Final concentration (in μM) | E1: Total voume
A2: Enviromental Mastermix | C2: 2 | D2: 1 | E2: =(B12+B10)*B11*D2/C2 -> 900
A3: Probe CMV | C3: 100 | D3: 0.3 | E3: =(B12+B10)*B11*D3/C3 -> 5.4
A4: Primer CMV+ | C4: 100 | D4: 1 | E4: =(B12+B10)*B11*D4/C4 -> 18
A5: Primer CMV- | C5: 100 | D5: 1 | E5: =(B12+B10)*B11*D5/C5 -> 18
A8: Water | E8: =(B12*B11)-(SUM(E2:E5)) -> 498.6
A9: vol mix 1x | C9: total | D9: =E11+B10 -> 10 | E9: =SUM(E2:E8) -> 1440
A10: Volume of template per well | B10: 10
A11: Number of wells* | B11: 36
A12: Volume of reagent per well | B12: 40
A13: * always add 10% additional wells to account for loss of reagents during pipetting
B17: 1 | C17: 2 | D17: 3 | E17: 4 | F17: 5 | G17: 6 | H17: 7 | I17: 8 | J17: 9 | K17: 10 | L17: 11 | M17: 12
A18: A | B18: D5 | C18: D5 | D18: Sample 1 | E18: Sample 1
A19: B | B19: D6 | C19: D6 | D19: Sample 2 | E19: Sample 2
A20: C | B20: D7 | C20: D7 | D20: Sample 3 | E20: Sample 3
A21: D | B21: D8 | C21: D8 | D21: Sample 4 | E21: Sample 4
A22: E | B22: D9 | C22: D9 | D22: Sample 5 | E22: Sample 5
A23: F | B23: D10 | C23: D10 | D23: Sample 6 | E23: Sample 6
A24: G | B24: D11 | C24: D11 | D24: Sample 7 | E24: Sample 7
A25: H | B25: D12 | C25: D12 | D25: H2O | E25: H2O
A29: Program: | E29: STANDARD | F29: Dil factor | G29: Template | H29: Tris | I29: Expected copy number/wells for CMV
B30: 50˚C | C30: 2 mins | E30: D5 | I30: 800000
B31: 95˚C | C31: 10 mins | E31: D6 | F31: 10 | G31: 5 | H31: 45 | I31: =I30/10 -> 80000
A32: Then run 50 cycles at: | E32: D7 | F32: 10 | G32: 5 | H32: 45 | I32: 8000
B33: 95˚C | C33: 15 secs | E33: D8 | F33: 10 | G33: 5 | H33: 45 | I33: 800
B34: 60˚C | C34: 1 mins | E34: D9 | F34: 10 | G34: 5 | H34: 45 | I34: 80
E35: D10 | F35: 10 | G35: 5 | H35: 45 | I35: 8
E36: D11 | F36: 10 | G36: 5 | H36: 45 | I36: 0.8
E37: D12 | F37: 10 | G37: 5 | H37: 45 | I37: 0.08

Sheet Results_example
B1: Standard | E1: Copies/well | H1: Sample ID | I1: Wells | J1: Ct for sample
B2: Dilution | C2: Well | D2: CT
B3: D5 | C3: A1 | D3: 20.580317 | E3: 800000 | H3: Sample 1 | I3: A3 | J3: 30.422132
C4: A2 | D4: 20.413937 | I4: A4 | J4: 30.165602
B5: D6 | C5: B1 | D5: 23.446764 | E5: 80000 | H5: Sample 2 | I5: B3 | J5: 32.38846
C6: B2 | D6: 23.26423 | I6: B4 | J6: 32.662605
B7: D7 | C7: C1 | D7: 25.867924 | E7: 8000 | H7: Sample 3 | I7: C3 | J7: Undetermined
C8: C2 | D8: 25.940132 | I8: C4 | J8: Undetermined
B9: D8 | C9: D1 | D9: 29.378288 | E9: 800 | H9: Sample 4 | I9: D3 | J9: 35.691135
C10: D2 | D10: 29.40943 | I10: D4 | J10: 35.8
B11: D9 | C11: E1 | D11: 32.816765 | E11: 80 | H11: Sample 5 | I11: E3 | J11: Undetermined
C12: E2 | D12: 32.82659 | I12: E4 | J12: Undetermined
B13: D10 | C13: F1 | D13: 36.527985 | E13: 8 | H13: Sample 6 | I13: F3 | J13: Undetermined
C14: F2 | D14: 35.37692 | I14: F4 | J14: Undetermined
B15: D11 | C15: G1 | D15: 48.611904 | E15: 0.8 | H15: Samples 7 | I15: G3 | J15: 35.022797
C16: G2 | D16: 37.80905 | I16: G4 | J16: 35.59958
B17: D12 | C17: H1 | D17: Undetermined | E17: 0.08 | H17: H2O | I17: H3 | J17: Undetermined
C18: H2 | D18: Undetermined | I18: H4 | J18: Undetermined
B22: NOTE: | C22: Consider repeating samples with differences of 0.3 Cts between duplicates. Run triplicates whenever possible to improve precision.
C23: Samples at the lower limit of detection might have discordant Ct values due to Poisson distribution of templates across wells
C24: Thus, for a reliable low copy detection, a large number of replicates are necessary to provide statistical significance and to overcome the Poisson distribution limitation.

Sheet Calculation-example
A1: Sample ID | B1: Replicate | C1: µl-orig template | D1: Dil-factor | E1: Copy number/wells | F1: log-lys | G1: ct Values | H1: Slope (a) | I1: Intercept (b) | J1: R2
A2: CMV Standard | B2: D5 | C2: 10 | D2: 1 | E2: 800000 | F2: =LOG(E2) -> 5.903089987 | G2: 20.580317 | H2: =LINEST(G2:G13,F2:F13) -> -3.119 | I2: =INTERCEPT(G2:G13,F2:F13) -> 38.60167784 | J2: =RSQ(G2:G13,F2:F13) -> 0.9953529435
A3: CMV Standard | B3: D5 | C3: 10 | D3: 1 | E3: 800000 | F3: =LOG(E3) -> 5.903089987 | G3: 20.413937 | H3: =H2 -> -3.119 | I3: =I2 -> 38.60167784 | J3: =$J$2 -> 0.9953529435
A4: CMV Standard | B4: D6 | C4: 10 | D4: 10 | E4: 80000 | F4: 4.903089987 | G4: 23.446764 | H4: =H3 -> -3.119 | I4: =I3 -> 38.60167784 | J4: =$J$2 -> 0.9953529435 | L4: y = ax + b
A5: CMV Standard | B5: D6 | C5: 10 | D5: 10 | E5: 80000 | F5: 4.903089987 | G5: 23.26423 | H5: -3.119 | I5: 38.60167784 | J5: 0.9953529435 | L5: a = slope obtained from the standard curve.
A6: CMV Standard | B6: D7 | C6: 10 | D6: 100 | E6: 8000 | F6: 3.903089987 | G6: 25.867924 | H6: -3.119 | I6: 38.60167784 | J6: 0.9953529435 | L6: b = intercept obtained from the standard curve.
A7: CMV Standard | B7: D7 | C7: 10 | D7: 100 | E7: 8000 | F7: 3.903089987 | G7: 25.940132 | H7: -3.119 | I7: 38.60167784 | J7: 0.9953529435 | L7: y = Threshold Ct value for seminal sample.
A8: CMV Standard | B8: D8 | C8: 10 | D8: 1000 | E8: 800 | F8: 2.903089987 | G8: 29.378288 | H8: -3.119 | I8: 38.60167784 | J8: 0.9953529435 | L8: x = Extrapolated amount of target DNA or cDNA for seminal sample.
A9: CMV Standard | B9: D8 | C9: 10 | D9: 1000 | E9: 800 | F9: 2.903089987 | G9: 29.40943 | H9: -3.119 | I9: 38.60167784 | J9: 0.9953529435
A10: CMV Standard | B10: D9 | C10: 10 | D10: 10000 | E10: 80 | F10: 1.903089987 | G10: 32.816765 | H10: -3.119 | I10: 38.60167784 | J10: 0.9953529435
A11: CMV Standard | B11: D9 | C11: 10 | D11: 10000 | E11: 80 | F11: 1.903089987 | G11: 32.82659 | H11: -3.119 | I11: 38.60167784 | J11: 0.9953529435
A12: CMV Standard | B12: D10 | C12: 10 | D12: 100000 | E12: 8 | F12: 0.903089987 | G12: 36.527985 | H12: -3.119 | I12: 38.60167784 | J12: 0.9953529435
A13: CMV Standard | B13: D10 | C13: 10 | D13: 100000 | E13: 8 | F13: 0.903089987 | G13: 35.37692 | H13: -3.119 | I13: 38.60167784 | J13: 0.9953529435
A14: CMV Standard | B14: D11 | C14: 10 | D14: 1000000 | E14: 0.8 | F14: =LOG(E14) -> -0.09691001301 | G14: 48.611904 | H14: -3.119 | I14: 38.60167784 | J14: 0.9953529435
A15: CMV Standard | B15: D11 | C15: 10 | D15: 1000000 | E15: 0.8 | F15: =LOG(E15) -> -0.09691001301 | G15: 37.80905 | H15: -3.119 | I15: 38.60167784 | J15: 0.9953529435
A16: CMV Standard | B16: D12 | C16: 10 | D16: 10000000 | E16: 0.08 | F16: =LOG(E16) -> -1.096910013 | G16: Undetermined | H16: -3.119 | I16: 38.60167784 | J16: 0.9953529435 | L16: Copies per well* | M16: Copy per elution | N16: Average of duplicate wells | O16: Copies per ml seminal plasma***
A17: CMV Standard | B17: D12 | C17: 10 | D17: 10000000 | E17: 0.08 | F17: =LOG(E17) -> -1.096910013 | G17: Undetermined | H17: -3.119 | I17: 38.60167784 | J17: 0.9953529435
A18: Sample 1 | B18: 1 | C18: 10 | G18: 30.422132 | H18: =H17 -> -3.119 | I18: =I17 -> 38.60167784 | J18: 0.9953529435 | K18: =(G18-I18)/H18 -> 2.622489848 | L18: =POWER(10,K18) -> 419.2661959 | M18: =L18*10 -> 4192.661959 | N18: =AVERAGE(M18:M19) -> 4629.751988 | O18: =N18*5 -> 23148.75994
A19: Sample 1 | B19: 2 | C19: 10 | G19: 30.165602 | H19: -3.119 | I19: 38.60167784 | J19: 0.9953529435 | K19: =(G19-I19)/H19 -> 2.704737363 | L19: =POWER(10,K19) -> 506.6842017 | M19: =L19*10 -> 5066.842017
A20: Sample 2 | B20: 1 | C20: 10 | G20: 32.38846 | H20: =H19 -> -3.119 | I20: 38.60167784 | J20: 0.9953529435 | K20: 1.992054452 | L20: =POWER(10,K20) -> 98.18710429 | M20: =L20*10 -> 981.8710429 | N20: =AVERAGE(M20:M21) -> 891.9216025 | O20: =N20*5 -> 4459.608012
A21: Sample 2 | B21: 2 | C21: 10 | G21: 32.662605 | H21: -3.119 | I21: 38.60167784 | J21: 0.9953529435 | K21: 1.904159293 | L21: =POWER(10,K21) -> 80.19721621 | M21: 801.9721621
A22: Sample 3 | B22: 1 | C22: 10 | G22: Undetermined | H22: -3.119 | I22: 38.60167784 | J22: 0.9953529435 | K22: 0 | L22: 0 | M22: 0 | N22: =AVERAGE(M22:M23) -> 0 | O22: =N22*5 -> 0
A23: Sample 3 | B23: 2 | C23: 10 | G23: Undetermined | H23: -3.119 | I23: 38.60167784 | J23: 0.9953529435 | K23: 0 | L23: 0 | M23: 0
A24: Sample 4 | B24: 1 | C24: 10 | G24: 35.691135 | H24: -3.119 | I24: 38.60167784 | J24: 0.9953529435 | K24: 0.9331653851 | L24: =POWER(10,K24) -> 8.573642787 | M24: 85.73642787 | N24: =AVERAGE(M24:M25) -> 82.42596327 | O24: =N24*5 -> 412.1298163
A25: Sample 4 | B25: 2 | C25: 10 | G25: 35.8 | H25: -3.119 | I25: 38.60167784 | J25: 0.9953529435 | K25: 0.8982615698 | L25: =POWER(10,K25) -> 7.911549866 | M25: 79.11549866
A26: Sample 5 | B26: 1 | C26: 10 | G26: Undetermined | H26: -3.119 | I26: 38.60167784 | J26: 0.9953529435 | K26: 0 | L26: 0 | M26: 0 | N26: =AVERAGE(M26:M27) -> 0 | O26: =N26*5 -> 0
A27: Sample 5 | B27: 2 | C27: 10 | G27: Undetermined | H27: -3.119 | I27: 38.60167784 | J27: 0.9953529435 | K27: 0 | L27: 0 | M27: 0
A28: Sample 6 | B28: 1 | C28: 10 | G28: Undetermined | H28: -3.119 | I28: 38.60167784 | J28: 0.9953529435 | K28: 0 | L28: 0 | M28: 0 | N28: =AVERAGE(M28:M29) -> 0 | O28: =N28*5 -> 0
A29: Sample 6 | B29: 2 | C29: 10 | G29: Undetermined | H29: -3.119 | I29: 38.60167784 | J29: 0.9953529435 | K29: 0 | L29: 0 | M29: 0
A30: Sample 7 | B30: 1 | C30: 10 | G30: 35.022797 | H30: -3.119 | I30: 38.60167784 | J30: 0.9953529435 | K30: 1.147444962 | L30: =POWER(10,K30) -> 14.04251712 | M30: 140.4251712 | N30: =AVERAGE(M30:M31) -> 116.0784253 | O30: =N30*5 -> 580.3921265
A31: Sample 7 | B31: 2 | C31: 10 | G31: 35.59958 | H31: -3.119 | I31: 38.60167784 | J31: 0.9953529435 | K31: 0.9625193447 | L31: =POWER(10,K31) -> 9.173167943 | M31: 91.73167943
A32: H2O | B32: 1 | C32: 10 | G32: Undetermined | H32: -3.119 | I32: 38.60167784 | J32: 0.9953529435 | K32: 0 | L32: 0 | M32: 0 | N32: =AVERAGE(M32:M33) -> 0 | O32: =N32*5 -> 0
A33: H2O | B33: 2 | C33: 10 | G33: Undetermined | H33: -3.119 | I33: 38.60167784 | J33: 0.9953529435 | K33: 0 | L33: 0 | M33: 0
L35: *One well containes 10ul of templates
L36: **One elution contains 100ul of templates (extracted from 200ul seminal plasma)
L37: ***Final concentration is calculated per ml seminal plasma
